Cogmind - Beta 14 @@@ ROGUE MODE // 2024.08.18 @ 02:01:41 Player: HourglassLad Result: Destroyed by Y-54 Guardian with Gatling Laser Performance ------------- Evolutions (4) 2000 Regions Visited (10) 2000 Robots Destroyed (46) 230 Value Destroyed (1930) 1930 Prototype IDs (0) 0 Alien Tech Used (0) 0 Bonus (601) 601 TOTAL SCORE: 6761 Bonus ------- High Alert Combat Kills 100 Follower Combat Kills 621 Friendly Fire -120 Cogmind --------- Core Integrity 0/850 Matter 218/300 Energy 35/100 System Corruption 13% Temperature Cool (6) Movement Core (50) Location -6/Factory Parts ------- > --- POWER (2) -------- (None) > --- PROPULSION (5) --- (None) > --- UTILITY (5) ------ (None) > --- WEAPON (3) ------- (None) > --- INVENTORY (5) ---- Improved Deuterium Engine Carbon-fiber Leg Carbon-fiber Leg Energy Well (0) Force Field Peak State ------------ > --- POWER ------------ Antimatter Reactor Antimatter Reactor > --- PROPULSION ------- Improved Aluminum Leg Carbon-fiber Leg Carbon-fiber Leg VSS Leg Improved Carbon-fiber Leg > --- UTILITY ---------- Coolant Injector Small Storage Unit Sensor Array Power Shielding Hardened Light Armor Plating > --- WEAPON ----------- Beamcaster Heavy Battle Rifle Bore Cannon > --- INVENTORY -------- Cryofiber Web Advanced Weight Redist. System Visual Processing Unit Hardened Light Armor Plating Force Field Bore Cannon Rocket Launcher [Rating: 54] Favorites ----------- Power Light Nuclear Core Engine Ion Engine Power Core Light Nuclear Core Reactor Antimatter Reactor Propulsion Improved Aluminum Leg Treads Light Treads Leg Improved Aluminum Leg Wheel Compact Wheel Flight Unit Cesium-ion Thruster Utility Small Storage Unit Device Sensor Array Storage Small Storage Unit Processor Improved Signal Interpreter Protection Hardened Light Armor Plating Weapon Shotgun Energy Gun Heavy Laser Energy Cannon Improved EM Pulse Cannon Ballistic Gun Shotgun Ballistic Cannon Bore Cannon Launcher Rocket Launcher Impact Weapon Makeshift Hammer Build | -11 -10 -9 -9 -8 -7 -7 -7 -7 -7 -6 ------- Run | Yrd Mat Mat Min Mat Fac Was Fac Low Low Fac Slots Evolved 8 | . . 2 . 2 2 . . . . 2 Power 1 | . . . . . . . . . . 1 Propulsion 3 | . . 2 . . 1 . . . . . Utility 3 | . . . . 1 1 . . . . 1 Weapon 1 | . . . . 1 . . . . . . Parts Attached 89 | 6 4 17 3 14 3 5 1 7 . 29 Power 10 | 1 . 4 . 2 . 1 . . . 2 Engine 5 | 1 . 3 . . . . . . . 1 Core 3 | . . 1 . 2 . . . . . . Reactor 2 | . . . . . . 1 . . . 1 Propulsion 32 | 2 2 7 1 4 2 . 1 2 . 11 Treads 1 | . . . . . . . . . . 1 Leg 27 | 2 2 7 1 4 2 . 1 2 . 6 Wheel 2 | . . . . . . . . . . 2 Hover . | . . . . . . . . . . . Flight 2 | . . . . . . . . . . 2 Utility 20 | 1 1 2 . 3 1 2 . 2 . 8 Device 6 | . 1 . . 1 . . . 1 . 3 Storage 1 | 1 . . . . . . . . . . Processor 3 | . . . . 2 . . . . . 1 Hackware . | . . . . . . . . . . . Protection 10 | . . 2 . . 1 2 . 1 . 4 Artifact . | . . . . . . . . . . . Weapon 27 | 2 1 4 2 5 . 2 . 3 . 8 Energy Gun 9 | 1 . . . 2 . . . 1 . 5 Energy Cannon 1 | . . . . . . . . . . 1 Ballistic Gun 8 | 1 1 3 1 1 . 1 . . . . Ballistic Cannon 3 | . . . . 1 . 1 . 1 . . Launcher 4 | . . 1 1 . . . . 1 . 1 Special Weapon . | . . . . . . . . . . . Impact Weapon 2 | . . . . 1 . . . . . 1 Slashing Weapon . | . . . . . . . . . . . Piercing Weapon . | . . . . . . . . . . . Special Melee Weapon . | . . . . . . . . . . . Unidentified Prototypes . | . . . . . . . . . . . Parts Lost 25 | . . . . 1 . . . 2 . 22 Power 2 | . . . . . . . . . . 2 Propulsion 9 | . . . . 1 . . . 1 . 7 Utility 8 | . . . . . . . . 1 . 7 Weapon 6 | . . . . . . . . . . 6 Highest Loss Streak 13 | . . . . 1 . . . 2 . 13 To Critical Strikes . | . . . . . . . . . . . Average Slot Usage (%) 94 | . 98 99 100 99 95 100 100 99 100 68 Engine 1 | . 14 4 . . . . . . . 3 Core 3 | . . 6 11 8 7 3 . . . . Reactor 2 | . . . . . . 3 7 7 7 2 Leg 35 | . 28 43 44 35 38 38 38 37 38 21 Device 8 | . 12 2 . 9 7 7 7 12 15 10 Storage 7 | . 14 11 11 9 7 7 7 7 7 1 Processor 3 | . . . . 9 7 7 7 . . 1 Protection 5 | . . 8 11 . 2 7 7 8 7 9 Energy Gun 4 | . 4 . . 2 7 7 7 7 7 4 Ballistic Gun 9 | . 23 21 22 13 . 4 7 7 7 . Ballistic Cannon 4 | . . . . 1 7 7 7 7 7 4 Impact Weapon 3 | . . . . 9 7 2 . . . 2 Peak Build Rating 54 | 6 11 18 17 29 33 41 44 46 46 54 Average Rating 30 | 4 9 16 16 24 32 37 42 45 46 34 On Entrance 26 | . 6 11 17 17 29 33 41 44 46 46 Naked Turns 29 | . . . . . . . . . . 29 Heaviest Build 63 | 14 16 21 19 24 27 44 44 50 46 63 Greatest Support 84 | 20 26 52 49 56 67 67 75 75 73 84 Greatest Overweight (x) 2 | 1 . . . . . . . . . 2 Average Overweight (x) . | . . . . . . . . . . . Largest Inventory Capacity 8 | 8 8 8 8 8 8 8 8 8 8 8 Average Capacity 7 | 6 8 8 8 8 8 8 8 8 8 5 Most Carried 8 | 4 8 8 8 8 8 8 8 8 8 8 Average Carried 7 | 2 6 7 7 7 7 7 7 8 8 5 Final Capacity 8 | 8 8 8 8 8 8 8 8 8 8 5 Final Carried 8 | 4 8 8 8 8 8 8 8 8 8 5 Class Distribution -------------------- 40% | Mutant 25% | Scavenger-Mutant 20% | Scavenger-Tank 9% | Scavenger-Skirmisher 3% | Skirmisher Dominant Class ---------------- Mutant | -10/Materials Mutant | -9/Materials Mutant | -9/Mines Mutant | -8/Materials Scavenger-Mutant | -7/Factory Scavenger-Skirmisher | -7/Waste Skirmisher | -7/Factory Scavenger-Tank | -7/Lower Caves Scavenger-Tank | -7/Lower Caves Scavenger-Mutant | -6/Factory Resources | -11 -10 -9 -9 -8 -7 -7 -7 -7 -7 -6 ----------- Run | Yrd Mat Mat Min Mat Fac Was Fac Low Low Fac Matter Collected 1958 | 193 100 254 76 328 50 108 . 297 . 552 Remotely . | . . . . . . . . . . . Salvage Created 1892 | . 32 254 76 394 50 . . 157 . 929 Parts 90 | . 1 19 2 22 1 . . 7 . 38 Haulers Intercepted . | . . . . . . . . . . . Recyclers Shooed 1 | . . . . . . . . . . 1 Parts Field Recycled . | . . . . . . . . . . . Retrieved Matter . | . . . . . . . . . . . Parts Self-Destructed 16 | . . . . . . . . 16 . . Prevented 2 | . . . . . . . . 2 . . Kills | -11 -10 -9 -9 -8 -7 -7 -7 -7 -7 -6 ------- Run | Yrd Mat Mat Min Mat Fac Was Fac Low Low Fac Combat Hostiles Destroyed 41 | . 1 7 2 10 1 . . 3 . 17 Melee 1 | . . . . 1 . . . . . . Guns 23 | . 1 7 1 7 1 . . 3 . 3 Cannons 12 | . . . . 1 . . . . . 11 AOE 4 | . . . 1 . . . . . . 3 Classes Destroyed 11 | . 1 2 . 1 . . . 1 . 6 Builder 1 | . . . . . . . . . . 1 Recycler 1 | . . . . . . . . . . 1 Mechanic 1 | . . . . . . . . . . 1 Watcher 1 | . . 1 . . . . . . . . Swarmer 3 | . . . . 3 . . . . . . Saboteur 1 | . . . . . . . . . . 1 Grunt 27 | . 1 6 2 5 1 . . . . 12 Brawler 2 | . . . . . . . . . . 2 Duelist 1 | . . . . . . . . . . 1 Sentry 5 | . . 1 . 2 . . . 1 . 1 Programmer 1 | . . . . . . . . 1 . . Thug 2 | . . . . . . . . 1 . 1 Best Kill Streak 9 | . 1 2 2 4 1 . . 1 . 9 Combat Bots Only 6 | . 1 2 2 4 1 . . 1 . 6 Max Kills in Single Turn 4 | . 1 1 1 1 1 . . 1 . 4 Gunslinging . | . . . . . . . . . . . Exploded 1 | . . . 1 . . . . . . 1 Melee 1 | . . . . 1 . . . . . . Uniques/NPCs Destroyed . | . . . . . . . . . . . Combat | -11 -10 -9 -9 -8 -7 -7 -7 -7 -7 -6 -------- Run | Yrd Mat Mat Min Mat Fac Was Fac Low Low Fac Hostile Shots Fired 518 | . 60 30 5 75 4 . . 20 . 324 Missed 183 | . 26 8 1 22 1 . . 5 . 120 Damage Taken 4911 | . 344 299 77 775 50 . . 401 . 2965 Core 1172 | . 67 28 18 164 . . . 34 . 861 Absorbed by Shields . | . . . . . . . . . . . Redirected to Shielding 51 | . . . . . . . . . . 51 Regen/Repaired (Parts) 112 | . . . . 39 . 73 . . . . Core Remaining (%) 85 | 100 73 . 88 70 . . . . 95 . Volleys Fired 146 | . 6 15 2 28 5 . . 20 . 70 Largest 3 | . 2 2 2 2 2 . . 3 . 3 Hottest 165 | . 43 53 53 113 113 . . 165 . 165 Shots Fired 260 | . 12 30 4 55 10 . . 42 . 107 Gun 168 | . 12 28 3 50 5 . . 22 . 48 Cannon 84 | . . . . 5 5 . . 19 . 55 Launcher 8 | . . 2 1 . . . . 1 . 4 Special . | . . . . . . . . . . . Kinetic 187 | . 12 28 3 47 5 . . 32 . 60 Thermal 64 | . . . . 8 5 . . 9 . 42 Explosive 8 | . . 2 1 . . . . 1 . 4 Electromagnetic 1 | . . . . . . . . . . 1 Robot Hit Streak 16 | . 3 5 5 16 5 . . 3 . 7 Robot Miss Streak 5 | . 2 5 1 5 2 . . 5 . 4 Penetration Max 1 | . . . . . . . . . . 1 Secondary Targets . | . . . . . . . . . . . Shots Hit Robots 169 | . 8 23 4 49 8 . . 12 . 65 Core Hits 104 | . 3 18 3 24 3 . . 5 . 48 Critical Kills 8 | . . . . . . . . . . 8 Critical Parts Destroyed 15 | . . . . 1 . . . 1 . 13 Critical Strikes 25 | . . . . 1 . . . 1 . 23 Burn 1 | . . . . . . . . . . 1 Destroy 23 | . . . . . . . . 1 . 22 Smash 1 | . . . . 1 . . . . . . Melee Attacks 3 | . . . . 3 . . . . . . Impact 3 | . . . . 3 . . . . . . Slashing . | . . . . . . . . . . . Piercing . | . . . . . . . . . . . Sneak Attacks . | . . . . . . . . . . . Combat Hostiles . | . . . . . . . . . . . Follow-up Attacks . | . . . . . . . . . . . Damage Inflicted 4535 | . 131 384 132 867 100 . . 358 . 2563 Guns 2227 | . 131 315 53 657 75 . . 284 . 712 Cannons 835 | . . . . 64 25 . . 49 . 697 Explosions 1314 | . . 69 79 . . . . 12 . 1154 Melee 126 | . . . . 126 . . . . . . Ramming 33 | . . . . 20 . . . 13 . . Kinetic 2156 | . 131 315 53 628 25 . . 276 . 728 Thermal 882 | . . . . 93 75 . . 57 . 657 Explosive 1314 | . . 69 79 . . . . 12 . 1154 Electromagnetic 24 | . . . . . . . . . . 24 Impact 126 | . . . . 126 . . . . . . Slashing . | . . . . . . . . . . . Piercing . | . . . . . . . . . . . Highest Corruption 13 | . . . . . . . . 6 6 13 Average Corruption 6 | . . . . . . . . 5 6 6 Corruption Purged . | . . . . . . . . . . . Corruption Blocked . | . . . . . . . . . . . Effects 36 | . . . . . . . . 22 1 13 Message Errors 8 | . . . . . . . . 5 . 3 Matter Fused 8 | . . . . . . . . 6 . 2 Heat Flow Errors 7 | . . . . . . . . 6 1 . Energy Discharges 2 | . . . . . . . . 1 . 1 Data Loss (minor) 4 | . . . . . . . . 2 . 2 Data Loss (major) 2 | . . . . . . . . 2 . . Misdirections 1 | . . . . . . . . . . 1 Weapon Failures 4 | . . . . . . . . . . 4 Overload Shots . | . . . . . . . . . . . Overflow Damage 87 | . . . . 65 . . . 10 . 12 Projectiles . | . . . . . . . . . . . Explosions 12 | . . . . . . . . . . 12 Melee 75 | . . . . 65 . . . 10 . . Knockbacks 11 | . . . . 2 4 . . . . 5 Impact . | . . . . . . . . . . . Kinetic 10 | . . . . 2 4 . . . . 4 Secondary 1 | . . . . . . . . . . 1 Self-Inflicted Damage 96 | . . . 28 . . . . . . 68 Shots 3 | . . . 1 . . . . . . 2 Rammed . | . . . . . . . . . . . Targets Rammed 3 | . . . . 2 . . . 1 . . Kicked 3 | . . . . 2 . . . 1 . . Crushed . | . . . . . . . . . . . Highest Temperature 441 | . . 9 9 204 177 . . 441 152 199 Average Temperature 103 | . . 4 5 76 89 . . 146 80 63 Received Heat Transfer 1785 | . 132 150 27 378 27 . . 63 . 1008 Effects 5 | . . . . . . . . 5 . . Shutdowns 1 | . . . . . . . . 1 . . Interference 3 | . . . . . . . . 3 . . Damage (minor) 1 | . . . . . . . . 1 . . Siege Activations . | . . . . . . . . . . . Robots Corrupted 1 | . . . . 1 . . . . . . Combat Hostiles 1 | . . . . 1 . . . . . . Parts Fried . | . . . . . . . . . . . Impact Corruptions 6 | . . . . 4 . . . 2 . . Robots Melted . | . . . . . . . . . . . Combat Hostiles . | . . . . . . . . . . . Parts Melted 1 | . . . . 1 . . . . . . Heat Transferred 1739 | . . . . 185 148 . . 111 . 1295 Parts Sabotaged 2 | . . . . . . . . . . 2 Parts Stolen . | . . . . . . . . . . . Parts Stripped . | . . . . . . . . . . . Power Chain Reactions . | . . . . . . . . . . . Alert | -11 -10 -9 -9 -8 -7 -7 -7 -7 -7 -6 ------- Run | Yrd Mat Mat Min Mat Fac Was Fac Low Low Fac Peak Influence 676 | . 80 271 164 278 151 52 42 . . 676 Initial 158 | . . 33 105 63 126 52 . . . 158 Average 154 | . 35 163 162 108 135 37 40 . . 453 Maximum Alert Level 2 | . . 1 . 1 . . . . . 2 Low Security (%) 77 | 100 100 80 100 85 100 100 100 . . 5 Level 1 10 | . . 19 . 14 . . . . . 22 Level 2 12 | . . . . . . . . . . 71 Level 3 . | . . . . . . . . . . . Level 4 . | . . . . . . . . . . . Level 5 . | . . . . . . . . . . . High Security . | . . . . . . . . . . . Max Security . | . . . . . . . . . . . Squads Dispatched 9 | . 2 1 . 2 . . . . . 4 Investigation 2 | . 1 . . 1 . . . . . . Extermination . | . . . . . . . . . . . Reinforcement 5 | . 1 1 . 1 . . . . . 2 Assault 2 | . . . . . . . . . . 2 Garrison . | . . . . . . . . . . . Intercept . | . . . . . . . . . . . Searches Triggered . | . . . . . . . . . . . Construction Impeded 1 | . . . . . . . . . . 1 Haulers Reinforced . | . . . . . . . . . . . Active Scanning Responses . | . . . . . . . . . . . Cargo Convoy Interrupts . | . . . . . . . . . . . Stealth | -11 -10 -9 -9 -8 -7 -7 -7 -7 -7 -6 --------- Run | Yrd Mat Mat Min Mat Fac Was Fac Low Low Fac Distress Signals 6 | . . . . 4 . . . . . 2 Communications Jammed . | . . . . . . . . . . . Distress Signals . | . . . . . . . . . . . Times Spotted 120 | . 13 9 2 32 1 . 1 19 . 43 Peak Tracking Total 10 | . 9 2 2 10 1 . 1 5 . 9 Tactical Retreats 15 | . 1 . . 4 . . . . . 10 Traps | -11 -10 -9 -9 -8 -7 -7 -7 -7 -7 -6 ------- Run | Yrd Mat Mat Min Mat Fac Was Fac Low Low Fac Traps Triggered 2 | . 1 . . . 1 . . . . . Indirectly . | . . . . . . . . . . . Trap Hack Attempts . | . . . . . . . . . . . Triggered . | . . . . . . . . . . . Disarmed . | . . . . . . . . . . . Reprogrammed . | . . . . . . . . . . . Reused . | . . . . . . . . . . . Traps Extracted . | . . . . . . . . . . . Installed . | . . . . . . . . . . . Triggered 1 | . . . . . . . . 1 . . Machines | -11 -10 -9 -9 -8 -7 -7 -7 -7 -7 -6 ---------- Run | Yrd Mat Mat Min Mat Fac Was Fac Low Low Fac Machines Disabled 8 | . . . . 1 . . 1 . . 6 Max in Single Turn 2 | . . . . 1 . . . . . 2 Machines Repaired . | . . . . . . . . . . . Machines Dismantled . | . . . . . . . . . . . Machines Sabotaged . | . . . . . . . . . . . Overloaded Fab Kills . | . . . . . . . . . . . Hacking | -11 -10 -9 -9 -8 -7 -7 -7 -7 -7 -6 --------- Run | Yrd Mat Mat Min Mat Fac Was Fac Low Low Fac Machines Accessed 13 | . 2 2 . 4 4 . . . . 1 Terminals 9 | . 2 2 . 2 2 . . . . 1 Fabricators 1 | . . . . . 1 . . . . . Repair Stations 1 | . . . . 1 . . . . . . Recycling Units . | . . . . . . . . . . . Scanalyzers 2 | . . . . 1 1 . . . . . Garrison Access . | . . . . . . . . . . . Total Hacks 36 | . 5 6 . 14 7 . . . . 4 Successful 16 | . 2 3 . 8 3 . . . . . Failed 20 | . 3 3 . 6 4 . . . . 4 Catastrophic 8 | . 2 2 . 2 1 . . . . 1 Database Lockouts . | . . . . . . . . . . . Manual 8 | . 2 2 . . . . . . . 4 Terminals 24 | . 5 6 . 7 2 . . . . 4 Fabricators 3 | . . . . . 3 . . . . . Repair Stations 4 | . . . . 4 . . . . . . Recycling Units . | . . . . . . . . . . . Scanalyzers 5 | . . . . 3 2 . . . . . Garrison Access . | . . . . . . . . . . . Terminal Hacks 9 | . 2 3 . 3 1 . . . . . Record 1 | . . . . 1 . . . . . . Open DSF 1 | . . . . . 1 . . . . . Branch Access Points 1 | . . . . 1 . . . . . . Emergency Access Points 1 | . . 1 . . . . . . . . Locate Traps 2 | . 1 . . 1 . . . . . . Zone Layout 3 | . 1 2 . . . . . . . . Fabricator Hacks 2 | . . . . . 2 . . . . . Network Status 1 | . . . . . 1 . . . . . Load Schematic 1 | . . . . . 1 . . . . . Repair Station Hacks 2 | . . . . 2 . . . . . . Scan Component 1 | . . . . 1 . . . . . . Repair 1 | . . . . 1 . . . . . . Recycling Unit Hacks . | . . . . . . . . . . . Scanalyzer 3 | . . . . 3 . . . . . . Insert Component 2 | . . . . 2 . . . . . . Analyze 1 | . . . . 1 . . . . . . Garrison Access Hacks . | . . . . . . . . . . . Unauthorized Hacks . | . . . . . . . . . . . Terminals . | . . . . . . . . . . . Fabricators . | . . . . . . . . . . . Repair Stations . | . . . . . . . . . . . Recycling Units . | . . . . . . . . . . . Scanalyzers . | . . . . . . . . . . . Garrison Access . | . . . . . . . . . . . Data Cores Recovered 1 | . . . . . . . 1 . . . Used . | . . . . . . . . . . . Hacking Detections 13 | . 2 2 . 4 4 . . . . 1 Full Trace Events 2 | . . . . 2 . . . . . . Feedback Events . | . . . . . . . . . . . Feedback Blocked . | . . . . . . . . . . . Robot Schematics Acquired . | . . . . . . . . . . . Robots Built . | . . . . . . . . . . . Authchips . | . . . . . . . . . . . Time . | . . . . . . . . . . . Total Robot Build Rating . | . . . . . . . . . . . Part Schematics Acquired 1 | . . . . 1 . . . . . . Parts Built . | . . . . . . . . . . . Authchips . | . . . . . . . . . . . Time . | . . . . . . . . . . . Total Part Build Rating . | . . . . . . . . . . . Parts Repaired 1 | . . . . 1 . . . . . . Time 19 | . . . . 19 . . . . . . Parts Recycled . | . . . . . . . . . . . Recycled Matter . | . . . . . . . . . . . Retrieved Matter . | . . . . . . . . . . . Retrieved Components . | . . . . . . . . . . . Parts Scanalyzed 1 | . . . . 1 . . . . . . Part Schematics Acquired 1 | . . . . 1 . . . . . . Parts Damaged . | . . . . . . . . . . . Bothacking | -11 -10 -9 -9 -8 -7 -7 -7 -7 -7 -6 ------------ Run | Yrd Mat Mat Min Mat Fac Was Fac Low Low Fac Used RIF Installer . | . . . . . . . . . . . Robots Hacked . | . . . . . . . . . . . Non-combat . | . . . . . . . . . . . Combat . | . . . . . . . . . . . Robot Hacks Applied . | . . . . . . . . . . . Relay Couplers Released . | . . . . . . . . . . . Fabnet Peak Effective % . | . . . . . . . . . . . Robots Rewired . | . . . . . . . . . . . Allies Hacked . | . . . . . . . . . . . Hacks Repelled . | . . . . . . . . . . . Allies | -11 -10 -9 -9 -8 -7 -7 -7 -7 -7 -6 -------- Run | Yrd Mat Mat Min Mat Fac Was Fac Low Low Fac Total Allies 20 | . . . . . . 20 . . . . Largest Group 20 | . . . . . . 20 5 5 2 2 Highest-Rated Group 528 | . . . . . . 528 146 146 66 66 Highest-Rated Ally 35 | . . . . . . 35 35 35 35 35 Total Orders . | . . . . . . . . . . . Ally Attacks 79 | . . . . . . . 1 73 . 5 Total Damage 2209 | . . . . . . . 27 2076 . 106 Kills 22 | . . . . . . . 1 21 . . Allies Corrupted . | . . . . . . . . . . . Allies Melted . | . . . . . . . . . . . Intel | -11 -10 -9 -9 -8 -7 -7 -7 -7 -7 -6 ------- Run | Yrd Mat Mat Min Mat Fac Was Fac Low Low Fac Robot Analysis Total . | . . . . . . . . . . . Derelict Logs Recovered 4 | . . . 1 . . . . 2 1 . Drone Launches . | . . . . . . . . . . . Drone Recoveries . | . . . . . . . . . . . Exploration | -11 -10 -9 -9 -8 -7 -7 -7 -7 -7 -6 ------------- Run | Yrd Mat Mat Min Mat Fac Was Fac Low Low Fac Turns Passed 4239 | 68 302 392 117 953 259 554 168 782 55 589 Spaces Moved 2822 | 46 207 237 88 460 197 462 143 626 49 307 Core 72 | 9 . . . . . . . . . 63 Treads . | . . . . . . . . . . . Legs 2672 | 37 207 237 88 460 197 462 143 626 49 166 Wheels 39 | . . . . . . . . . . 39 Hover . | . . . . . . . . . . . Flight 39 | . . . . . . . . . . 39 Fastest Speed 32 | 50 120 120 120 120 116 116 116 112 114 32 Average Speed 114 | 112 120 120 120 121 116 116 116 114 114 95 Slowest Speed 190 | 120 120 120 120 123 116 116 116 116 114 190 Overloaded Moves . | . . . . . . . . . . . Propulsion Burnouts . | . . . . . . . . . . . Robots Hopped . | . . . . . . . . . . . Cave-ins Triggered . | . . . . . . . . . . . Exploration Rate (%) 31 | 3 52 21 38 34 5 96 5 72 11 6 Regions Visited 10 Branch Regions 3 Pre-discovered Areas . | . . . . . . . . . . . Known Exits Taken 2 | . . . . 1 . . 1 . . . Unknown Exits Taken 6 | 1 1 1 1 . . . . 1 1 . Scrap Searched 3 | . . . . . . . . 3 . . Spaces Dug 3 | . . . . . . . . 3 . . Terrain Destroyed 125 | . . 18 9 . . . . 13 . 85 Melee . | . . . . . . . . . . . Projectile 26 | . . . . . . . . 10 . 16 AOE 99 | . . 18 9 . . . . 3 . 69 Terrain Rammed . | . . . . . . . . . . . Walls Destroyed . | . . . . . . . . . . . Machines Disabled . | . . . . . . . . . . . Actions | -11 -10 -9 -9 -8 -7 -7 -7 -7 -7 -6 --------- Run | Yrd Mat Mat Min Mat Fac Was Fac Low Low Fac Total 3566 | 60 249 320 95 796 218 484 146 657 48 493 Wait 402 | . 21 25 . 277 8 . . . . 71 Move 2813 | 45 206 236 87 459 197 461 142 625 48 307 Hop . | . . . . . . . . . . . Pick Up 40 | 7 6 8 1 4 2 5 1 . . 6 Fast Attach 41 | 5 2 5 . 7 . 2 . 4 . 16 Attach 17 | 1 . 2 . 2 2 . . . . 10 Detach 6 | . 1 1 . . . . . . . 4 Swap 31 | . 2 10 3 5 1 3 1 3 . 3 Drop 58 | 2 5 18 2 9 1 10 2 3 . 6 Fire 146 | . 6 15 2 28 5 . . 20 . 70 Melee 3 | . . . . 3 . . . . . . Ram . | . . . . . . . . . . . Kick 3 | . . . . 2 . . . 1 . . Crush . | . . . . . . . . . . . Escape Stasis . | . . . . . . . . . . . Rewire 6 | . . . . . 2 3 . 1 . . Trap . | . . . . . . . . . . . Miscellaneous . | . . . . . . . . . . . Route ------- -11/Scrapyard -10/Materials -9/Materials -9/Mines -8/Materials -7/Factory -7/Waste -7/Factory -7/Lower Caves -7/Lower Caves -6/Factory (discovered 1 exit: Low) History --------- Turn | Location | Event 12 | -11/Scrapyard | Discovered new exit (range 16) 69 | -11/Scrapyard | Entered Materials 306 | -10/Materials | Build established: Mutant 351 | -10/Materials | Discovered new exit (range 16) 371 | -10/Materials | Entered another Materials area 371 | -9/Materials | Evolved 2 slots: Propulsion x2 744 | -9/Materials | Discovered new exit (range 6) 763 | -9/Materials | Entered Mines 770 | -9/Mines | Met a Derelict bent on vengeance 808 | -9/Mines | A weapon hastily lodged in a ceiling crevice suddenly fell to the ground 869 | -9/Mines | Discovered new exit (range 10) 880 | -9/Mines | Entered Materials 880 | -8/Materials | Evolved 2 slots: Utility x1, Weapon x1 881 | -8/Materials | Identified exit to Factory 1366 | -8/Materials | Repaired Lgt. Nuclear Core 1833 | -8/Materials | Entered Factory 1833 | -7/Factory | Evolved 2 slots: Propulsion x1, Utility x1 1873 | -7/Factory | Build established: Scavenger-Mutant 2092 | -7/Factory | Sucked down chute 2092 | -7/Factory | Entered Waste 2093 | -7/Waste | Joined by Warlord forces that had cleared the area 2440 | -7/Waste | Discovered new exit (range 16) 2627 | -7/Waste | Build established: Scavenger-Skirmisher 2645 | -7/Waste | Identified exit to Factory 2646 | -7/Waste | Entered Factory 2646 | -7/Factory | Accompanied by 5 allies 2796 | -7/Factory | Discovered new exit (range 10) 2813 | -7/Factory | Identified exit to Lower Caves 2814 | -7/Factory | Entered Lower Caves 2814 | -7/Lower Caves | Accompanied by 5 allies 2845 | -7/Lower Caves | Ambushed by wild Derelicts 3009 | -7/Lower Caves | Attracted the attention of an 0b10 outpost 3039 | -7/Lower Caves | P-60 Hacker assimilated allied MJ-5LY(s) 3066 | -7/Lower Caves | Learned location of 1 exit from Factory 3179 | -7/Lower Caves | Build established: Scavenger-Tank 3360 | -7/Lower Caves | Attracted the attention of an 0b10 checkpoint 3431 | -7/Lower Caves | Discovered new exit (range 9) 3596 | -7/Lower Caves | Entered another Lower Caves area 3596 | -7/Lower Caves | Accompanied by 2 allies 3603 | -7/Lower Caves | Learned Factory interactive machine intel 3639 | -7/Lower Caves | Discovered new exit (range 11) 3651 | -7/Lower Caves | Entered Factory 3651 | -6/Factory | Accompanied by 2 allies 3651 | -6/Factory | Evolved 2 slots: Power x1, Utility x1 3652 | -6/Factory | Identified exit to Lower Caves 3653 | -6/Factory | Loaded intel: 52 interactive machine locations 3832 | -6/Factory | Lost 13 parts (2p4n4u3w) 4001 | -6/Factory | First assault squad dispatched 4106 | -6/Factory | Build established: Scavenger-Mutant 4143 | -6/Factory | System corruption reached 10% 4163 | -6/Factory | Released all parts (7) 4193 | -6/Factory | Lost 3 parts (1u2w) 4197 | -6/Factory | Core integrity fell below 50% 4233 | -6/Factory | Core integrity fell below 20% 4235 | -6/Factory | Released all parts (1) 4240 | -6/Factory | Destroyed by Y-54 Guardian with Gatling Laser Last Messages --------------- 04200_ Cesium-ion Thruster destroyed. 04203_ Connecting with Terminal... 04203_ Current location identified: Factory 04203_ Cesium-ion Thruster destroyed. 04205_ Acquired Imp. EM Pulse Cannon. 04210_ Slug penetrates Power Conduit. 04217_ System corrupted: Energy discharge (-21). 04218_ Slug penetrates Power Conduit. 04222_ Imp. EM Pulse Cannon destroyed. 04226_ Slug penetrates Power Conduit. 04229_ Hrd. Light Armor Plating destroyed. 04233_ Y-54 Guardian destroyed. 04235_ Released Hvy. Laser. 04235_ Acquired 72 matter. 04236_ Penetrated by Slug. 04237_ TRWOVE 0 3JV, 1JVNXFF ENMLAL93DIM